bitfinex/quotes_ETHUSD_20220731
["timestamp","ask_amount","ask_price","bid_price","bid_amount"]
[1659305397697,0.00269199,1700.5,1700.4,1.5]
[1659305397852,0.00269199,1700.5,1700.4,1.8]
[1659305398058,0.00269199,1700.5,1700.4,1.85]
[1659305398369,0.05,1700.9,1700.4,2.02598436]
[1659305398570,11.0134,1701.0,1700.5,0.3]
[1659305398770,11.0134,1701.0,1700.6,0.1469571]
[1659305399098,0.3,1701.0,1700.9,0.25]
[1659305400003,3.19804672,1701.0,1700.8,3.0]
[1659305400165,3.19804672,1701.0,1700.4,0.05]
[1659305400366,3.19804672,1701.0,1700.3,0.02651346]
[1659305400700,3.19804672,1701.0,1700.4,0.1469796]
[1659305400936,3.19804672,1701.0,1700.4,0.4913808]
[1659305401158,8.21974,1702.1,1700.8,0.05]
[1659305401298,0.91330182,1702.3,1702.0,3.05098872]
[1659305401499,3.3184,1702.6,1702.1,3.6444012]
[1659305401740,7.0,1702.8,1702.1,0.6444012]
[1659305401934,5.8375,1702.9,1702.1,0.6444012]
[1659305402158,5.8375,1702.9,1702.1,0.3444012]
[1659305402353,5.8375,1702.9,1702.0,0.05]
[1659305402354,3.65,1702.6,1702.0,0.05]
[1659305402551,3.65,1702.6,1702.0,0.3444012]
[1659305402552,1.95,1702.6,1702.0,0.3444012]
[1659305402707,2.3918,1702.6,1702.0,0.6444012]
[1659305403318,7.0,1702.5,1701.8,3.35]
[1659305403638,0.4419,1702.4,1701.7,0.05]
[1659305403848,0.4419,1702.4,1701.8,0.3444012]
[1659305404056,7.5919,1702.4,1701.6,0.65]
[1659305404363,3.5,1702.0,1701.5,0.05]
[1659305404556,0.442,1701.9,1701.3,0.05]
[1659305404763,9.697,1702.1,1701.2,0.47295659]
[1659305404764,0.492,1702.0,1701.2,0.47295659]
[1659305405526,6.197,1701.9,1701.2,0.47295659]
[1659305405771,0.442,1701.8,1701.2,1.07295659]
[1659305406347,0.442,1701.8,1701.2,1.14045968]
[1659305406533,6.839,1701.9,1701.2,1.14045968]
[1659305406727,6.789,1701.9,1701.2,1.14045968]
[1659305407330,6.789,1701.9,1701.2,0.36750309]
[1659305408391,6.789,1701.9,1701.2,0.71190429]
[1659305409133,6.347,1701.9,1701.2,0.71190429]
[1659305409666,6.197,1701.9,1701.2,0.71190429]
[1659305412035,9.09504672,1701.8,1701.2,0.71190429]
[1659305412247,2.89804672,1701.7,1701.2,0.71190429]
[1659305412593,0.15,1701.3,1701.2,0.06750309]
[1659305412754,3.04804672,1701.3,1701.2,0.06750309]
[1659305413765,2.89804672,1701.3,1701.2,0.06750309]
[1659305414676,3.04804672,1701.3,1701.2,0.06750309]
[1659305414880,2.89804672,1701.3,1701.2,0.06750309]
[1659305415082,2.89804672,1701.3,1700.8,0.05]
[1659305415083,0.043,1701.2,1700.8,0.05]
[1659305415386,2.89804672,1701.1,1700.5,0.05]
[1659305415563,2.89804672,1701.1,1700.3,7.99502]
[1659305415765,2.94804672,1701.1,1700.3,7.94502]
[1659305415998,2.94804672,1701.1,1700.5,0.29388]
[1659305416198,2.89804672,1701.1,1700.7,2.69396383]
[1659305416402,2.89804672,1701.1,1700.8,3.6]
[1659305416552,2.89804672,1701.1,1700.8,0.3]
[1659305416752,2.89804672,1701.1,1700.7,0.47598436]
[1659305417009,2.89804672,1701.1,1700.6,0.9444012]
[1659305417592,2.89804672,1701.1,1700.6,1.12038556]
[1659305418095,2.89804672,1701.1,1700.8,0.1469463]
[1659305418800,8.9273,1701.3,1700.8,0.1469463]
[1659305418801,2.89804672,1701.2,1700.8,0.1469463]
[1659305419091,2.89804672,1701.2,1700.8,1.26733186]
[1659305419307,2.89804672,1701.2,1700.9,0.02593418]
[1659305421491,5.62834672,1701.3,1701.0,0.05]
[1659305421697,6.1891,1701.4,1701.3,0.05]
[1659305421864,3.1933,1701.4,1701.3,0.05]
[1659305422066,8.1647,1701.5,1701.3,0.05]
[1659305422281,11.06274672,1701.5,1701.3,3.17598436]
[1659305422466,2.89804672,1701.5,1701.3,3.17598436]
[1659305422866,2.89804672,1701.7,1701.3,3.17598436]
[1659305423267,2.89804672,1701.6,1701.3,0.02381491]
[1659305423475,9.09504672,1701.5,1701.3,0.02381491]
[1659305423809,3.34014672,1701.4,1701.3,0.02381491]
[1659305423968,2.89804672,1701.4,1701.3,0.02381491]
[1659305427665,2.89804672,1701.4,1701.3,0.02047628]
[1659305430423,2.89804672,1701.4,1701.1,0.1469376]
[1659305431525,2.89804672,1701.4,1701.3,0.02551842]
[1659305439945,2.89804672,1701.4,1701.3,0.17246352]
[1659305440388,2.89804672,1701.4,1701.3,1.10346352]
[1659305440561,2.89804672,1701.5,1701.3,1.52944788]
[1659305440758,2.89804672,1701.5,1701.3,4.52944788]
[1659305440977,2.89804672,1701.5,1701.4,0.29378]
[1659305444760,2.7847,1701.8,1701.4,0.29378]
[1659305444961,2.7847,1701.8,1701.4,0.88756]
[1659305445574,2.7847,1701.8,1701.4,0.59378]
[1659305445575,2.89804672,1701.7,1701.4,0.59378]
[1659305445760,2.89804672,1701.7,1701.4,0.61651577]
[1659305446635,2.89804672,1701.7,1701.4,0.02273577]
[1659305446636,9.09504672,1701.6,1701.4,0.02273577]
[1659305446781,9.09504672,1701.6,1701.0,2.94316258]
[1659305446782,9.09504672,1701.5,1701.0,0.05]
[1659305447134,9.09504672,1701.4,1700.8,0.05]
[1659305447428,2.89804672,1701.3,1700.8,0.1469639]
[1659305451314,2.89804672,1701.3,1700.8,0.4408439]
[1659305451513,2.89804672,1701.3,1700.8,0.7408439]
[1659305451830,2.89804672,1701.3,1700.8,1.4755466]
[1659305452162,2.89804672,1701.3,1700.9,0.59388]
[1659305452703,2.89804672,1701.3,1701.0,0.29387]
[1659305453141,2.89804672,1701.3,1701.0,1.3285766]
[1659305454904,2.89804672,1701.3,1701.0,1.0347066]
[1659305459413,2.89804672,1701.3,1701.0,1.3285866]
[1659305460258,9.09504672,1701.3,1701.0,1.3285866]
[1659305460456,2.89804672,1701.2,1701.0,1.0347066]
[1659305462850,2.84804672,1701.2,1701.0,1.3285866]
[1659305468181,9.24504672,1701.1,1700.6,0.05]
[1659305468398,2.89804672,1701.0,1700.4,3.0055]
[1659305468656,2.89804672,1701.0,1700.4,2.9555]
[1659305468854,9.09504672,1701.0,1700.4,2.9555]
[1659305469010,2.89804672,1700.9,1700.3,8.1335]
[1659305469656,2.89804672,1700.9,1700.3,8.4779012]
[1659305470009,2.89804672,1700.9,1700.5,0.5885618]
[1659305470211,9.15783829,1700.6,1700.2,0.05]
[1659305470465,12.59504672,1700.4,1700.1,11.72]
[1659305470754,2.89804672,1700.2,1699.8,0.05]
[1659305470956,9.09504672,1699.9,1699.5,0.05]
[1659305471126,2.89804672,1699.8,1699.3,0.00223717]
[1659305471329,9.09504672,1699.8,1699.3,0.00223717]
[1659305471510,3.04804672,1699.7,1699.3,0.00223717]
[1659305471712,2.89804672,1699.6,1699.3,0.00223717]
[1659305471910,2.89804672,1699.6,1699.2,0.1176788]
[1659305473549,9.09504672,1699.6,1699.2,0.1176788]
[1659305473749,2.89804672,1699.5,1699.2,0.1176788]
[1659305475374,9.09504672,1699.5,1699.2,0.1176788]
[1659305475643,2.89804672,1699.4,1699.2,0.1176788]
[1659305478167,9.09504672,1699.4,1699.2,0.1176788]
[1659305478503,2.89804672,1699.3,1699.2,0.1176788]
[1659305480428,14.6911,1699.6,1699.2,0.1176788]
[1659305480429,2.89804672,1699.5,1699.2,0.1176788]
[1659305480724,2.89804672,1699.5,1699.2,0.4176788]
[1659305482629,0.05,1699.8,1699.2,4.6545288]
[1659305482784,0.05,1699.9,1699.8,2.631]
[1659305482984,0.05,1700.3,1700.2,0.25]
[1659305483236,20.4702,1700.7,1699.9,3.25]
[1659305483387,20.4202,1700.7,1700.1,0.6444012]
[1659305483592,0.4923,1700.9,1700.3,0.05]
[1659305483815,0.05,1701.0,1700.5,0.05]
[1659305484012,3.5,1701.0,1700.5,0.1175749]
[1659305484227,0.4423,1700.9,1700.5,0.1175749]
[1659305484431,0.4422,1701.0,1700.5,0.1175749]
[1659305484732,6.197,1700.8,1700.5,0.1175749]
[1659305484886,6.197,1700.8,1700.2,0.05]
[1659305485084,9.697,1700.7,1700.2,0.1176052]
[1659305485324,6.197,1700.5,1700.0,8.2519]
[1659305485529,6.6394,1700.5,1700.0,0.3]
[1659305485729,6.6394,1700.5,1700.1,0.3]
[1659305485889,6.197,1700.5,1699.9,3.6]
[1659305486427,0.15,1700.4,1699.9,3.6]
[1659305486627,9.847,1700.4,1699.9,0.7176253]
[1659305486930,2.89804672,1700.3,1699.9,0.4176253]
[1659305487704,3.5,1700.2,1699.9,0.1176253]
[1659305487918,3.5,1700.2,1699.6,0.1676537]
[1659305487919,2.89804672,1700.1,1699.6,0.1676537]
[1659305488104,2.89804672,1700.1,1699.6,0.1176537]
[1659305491107,2.89433975,1700.1,1699.6,0.4620549]
[1659305491308,2.89433975,1700.1,1699.7,0.05]
[1659305491507,2.89433975,1700.1,1699.8,0.5882082]
[1659305491708,2.89433975,1700.1,1699.8,0.7058511]
[1659305493353,2.89433975,1700.1,1699.8,1.0058511]
[1659305494347,14.09504672,1699.9,1699.1,3.6334]
[1659305494520,3.7,1699.7,1699.0,7.6406]
[1659305494714,2.89804672,1699.6,1699.0,7.6406]
[1659305495773,2.89804672,1699.6,1699.0,7.8406]
[1659305496077,2.89804672,1699.6,1699.0,7.9406]
[1659305496289,2.89804672,1699.6,1699.1,3.0]
[1659305496775,2.89804672,1699.6,1699.1,2.90476]
[1659305497131,2.89804672,1699.6,1699.1,3.4931165]
[1659305497330,2.89804672,1699.6,1699.2,0.117677]
[1659305497529,2.89804672,1699.6,1699.2,0.417677]
[1659305497781,2.89804672,1699.7,1699.4,0.2]
[1659305498164,2.89804672,1699.7,1699.5,0.3]
[1659305500335,2.89804672,1699.9,1699.5,0.3]
[1659305502477,0.34471435,1699.8,1699.5,0.3]
[1659305503087,2.89804672,1699.9,1699.5,0.3]
[1659305503398,2.89804672,1699.9,1699.3,0.29412]
[1659305504208,2.89804672,1699.9,1699.5,0.1176503]
[1659305504358,2.89804672,1699.9,1699.5,0.4176503]
[1659305505067,2.89804672,1699.9,1699.5,0.7117503]
[1659305505814,2.89804672,1699.9,1699.5,0.4176503]
[1659305507576,0.03836808,1699.8,1699.5,0.4176503]
[1659305508591,0.03836808,1699.8,1699.5,0.7117203]
[1659305508997,0.03836808,1699.8,1699.5,0.88770466]
[1659305509179,0.03836808,1699.8,1699.5,3.88770466]
[1659305509396,0.03836808,1699.8,1699.5,0.88770466]
[1659305509769,0.03836808,1699.8,1699.5,1.18177466]
[1659305510400,0.05,1700.1,1699.7,0.2]
[1659305510742,13.7609,1700.7,1699.9,0.2]
[1659305510743,0.05,1700.4,1699.9,0.2]
[1659305510898,0.05,1700.6,1700.2,0.2]
[1659305511252,6.2412,1700.7,1700.5,0.2]
[1659305511538,6.2412,1700.7,1700.2,1.5932511]
[1659305511539,2.8691,1700.7,1700.2,1.5932511]
[1659305511698,2.8691,1700.7,1700.2,4.8932511]
[1659305512091,5.76714672,1700.7,1700.2,4.8932511]
[1659305513138,2.89804672,1700.6,1700.2,3.7175685]
[1659305513314,2.89804672,1700.6,1700.3,3.0]
[1659305513512,2.89804672,1700.6,1700.2,0.4175685]
[1659305513700,3.24276107,1700.6,1700.3,0.02480999]
[1659305513916,2.89804672,1700.5,1700.3,0.02480999]
[1659305516123,2.89804672,1700.5,1700.3,0.61275579]
[1659305516324,2.89804672,1700.5,1700.4,0.3]
[1659305517927,2.89804672,1700.5,1700.4,0.4176048]
[1659305519429,2.89804672,1700.5,1700.4,0.1176048]
[1659305522352,9.09504672,1700.5,1700.3,0.02480999]
[1659305522553,13.03744672,1700.4,1700.3,0.02480999]
[1659305523596,13.38216107,1700.4,1700.3,0.02480999]
[1659305523973,3.68516107,1700.4,1700.3,0.02480999]
[1659305524157,3.24276107,1700.4,1700.3,0.02480999]
[1659305529816,9.43976107,1700.4,1700.3,0.02480999]
[1659305531737,9.43976107,1700.4,1700.3,0.00080999]
[1659305531938,9.43976107,1700.4,1699.9,3.05]
[1659305531939,16.46976107,1700.4,1699.9,0.05]
[1659305532098,6.397,1700.1,1699.7,0.05]
[1659305532442,3.5,1699.8,1699.4,0.05]
[1659305532621,2.89804672,1699.7,1699.3,0.0022126]
[1659305532786,2.89804672,1699.6,1699.3,0.0022126]
[1659305533216,2.89804672,1699.8,1699.3,0.29411]
[1659305533994,2.89804672,1699.8,1699.3,3.59411]
[1659305534236,2.89804672,1699.8,1699.4,0.7059164]
[1659305534420,2.89804672,1699.8,1699.5,0.3]
[1659305535345,2.79804672,1699.8,1699.5,0.3]
[1659305536006,2.79804672,1699.8,1699.5,0.32712697]
[1659305536208,2.79804672,1699.8,1699.5,0.44478457]
[1659305536436,3.14276107,1699.8,1699.5,0.44478457]
[1659305536639,2.89804672,1699.7,1699.5,0.14478457]
[1659305536855,3.09804672,1699.7,1699.5,0.02712697]
[1659305537065,16.09504672,1699.6,1699.2,0.1176841]
[1659305537363,3.5,1699.3,1699.0,11.72]
[1659305537663,9.09504672,1699.2,1698.9,0.1177052]
[1659305537827,3.24276107,1699.1,1698.6,0.1677251]
[1659305538032,3.24276107,1699.1,1698.6,0.1177251]
[1659305538033,2.89804672,1699.0,1698.6,0.1177251]
[1659305538470,2.89804672,1699.1,1698.6,0.1177251]
[1659305538671,2.89804672,1699.1,1698.7,0.2]
[1659305538973,2.89804672,1699.1,1698.7,0.6428]
[1659305539466,2.89804672,1699.1,1698.7,0.5884119]
[1659305539627,2.89804672,1699.1,1698.8,0.4177081]
[1659305540052,0.34471435,1699.0,1698.8,0.4177081]
[1659305540254,2.89804672,1698.9,1698.8,0.4177081]
[1659305541167,2.89804672,1698.9,1698.8,0.1177081]
[1659305542737,3.2681,1699.3,1698.8,0.4177081]
[1659305542738,0.05,1699.3,1698.8,0.4177081]
[1659305542963,11.6859,1699.5,1698.9,4.97077]
[1659305542964,0.05,1699.5,1698.9,4.97077]
[1659305543278,0.0374824,1699.6,1699.4,0.2]
[1659305543434,0.0374824,1699.6,1699.4,0.4941]
[1659305543785,0.0374824,1699.6,1699.4,0.5941]
[1659305543986,0.0374824,1699.6,1699.4,0.47008436]
[1659305544142,0.0374824,1699.6,1699.5,0.3]
[1659305545841,2.93552912,1699.6,1699.5,0.3]
[1659305546242,2.93552912,1699.6,1699.2,3.6]
[1659305546481,2.89804672,1699.5,1699.2,3.6]
[1659305546872,2.89804672,1699.5,1699.0,3.6]
[1659305547042,2.89804672,1699.5,1699.1,0.1176934]
[1659305550852,2.89804672,1699.5,1699.1,0.14444638]
[1659305551865,9.09504672,1699.4,1699.1,0.14444638]
[1659305552093,2.89804672,1699.3,1699.1,0.14444638]
[1659305552669,3.09804672,1699.3,1699.1,0.14444638]
[1659305552899,2.89804672,1699.2,1699.1,0.14444638]
[1659305553074,2.89804672,1699.2,1699.0,0.02918507]
[1659305553075,9.09504672,1699.2,1699.0,0.02918507]
[1659305553275,2.89804672,1699.1,1699.0,0.02918507]
[1659305556910,2.89804672,1699.1,1699.0,0.32918507]
[1659305557281,3.55411435,1699.3,1699.0,0.82918507]
[1659305557282,2.89804672,1699.3,1699.0,0.82918507]
[1659305557509,2.89804672,1699.3,1699.1,0.1176668]
[1659305557711,2.89804672,1699.3,1699.1,3.4176668]
[1659305558280,2.89804672,1699.3,1699.1,0.3]
[1659305558481,6.39804672,1699.3,1699.1,0.3]
[1659305558718,2.89804672,1699.2,1699.1,0.3]
[1659305559099,2.89427437,1699.2,1699.0,0.14688827]
[1659305560735,9.09127437,1699.2,1699.0,0.32918507]
[1659305560909,6.39804672,1699.1,1699.0,0.02918507]
[1659305561308,12.59504672,1699.1,1699.0,0.02918507]
[1659305561720,12.59504672,1699.1,1698.0,0.3]
[1659305561721,0.2,1698.6,1698.0,0.3]
[1659305561913,6.39804672,1698.5,1698.0,0.3]
[1659305562116,2.89804672,1698.4,1698.0,0.3]
[1659305562348,2.89804672,1698.4,1698.0,0.5944]
[1659305562667,2.89804672,1698.4,1698.0,0.7121716]
[1659305562668,3.09804672,1698.4,1698.0,0.7121716]
[1659305562838,2.89804672,1698.3,1698.0,0.7121716]
[1659305563239,7.2,1698.1,1697.9,0.8830198]
[1659305563513,7.2,1698.1,1697.4,2.94409]
[1659305563514,0.2,1697.8,1697.4,1.47192]
[1659305563713,3.5,1697.6,1697.4,1.47192]
[1659305563913,0.34471435,1697.5,1697.4,1.8842212]
[1659305564167,0.34471435,1697.5,1697.4,0.1178012]
[1659305564508,0.34471435,1697.5,1697.4,0.4123012]
[1659305564722,2.89804672,1697.6,1697.4,0.58828556]
[1659305564907,17.2574,1697.9,1697.4,2.64954836]
[1659305564908,2.89804672,1697.8,1697.4,2.64954836]
[1659305565152,2.89804672,1697.8,1697.5,0.29445]
[1659305565349,3.5,1697.8,1697.5,0.08889]
[1659305565665,2.89804672,1697.7,1697.3,0.53508172]
[1659305565833,2.89804672,1697.7,1697.2,0.8833696]
[1659305566213,2.89804672,1697.7,1697.4,0.1178056]
[1659305567670,0.05,1698.0,1697.7,0.2]
[1659305567883,0.05,1698.3,1697.8,0.7431]
[1659305568065,6.5643,1698.9,1697.8,0.7431]
[1659305568066,0.05,1698.5,1697.9,2.89804672]
[1659305568246,0.05,1698.7,1698.0,4.087]
[1659305568480,0.2,1698.4,1698.1,0.3]
[1659305568681,3.5,1698.7,1698.1,0.3]
[1659305568682,9.727,1698.6,1698.1,0.3]
[1659305568991,6.197,1698.6,1698.1,0.3]
[1659305569140,6.197,1698.6,1698.0,1.0617262]
[1659305569344,6.6898,1698.7,1698.0,1.0617262]
[1659305569587,0.4428,1698.7,1698.2,0.29438]
[1659305569760,0.4428,1698.7,1698.3,0.4177449]
[1659305569949,10.1143,1698.9,1698.3,0.4177449]
[1659305569950,3.3735,1698.9,1698.4,0.544]
[1659305570149,6.8235,1698.9,1698.4,0.59427]
[1659305570387,6.8235,1698.9,1698.5,0.1177072]
[1659305570589,6.197,1698.6,1698.5,0.1177072]
[1659305570974,3.0848,1698.9,1698.5,0.1177072]
[1659305570975,3.5276,1698.9,1698.5,0.1177072]
[1659305571176,6.4392,1698.9,1698.5,0.1177072]
[1659305571624,6.4392,1698.9,1698.5,0.4177072]
[1659305571625,9.1086,1698.9,1698.5,0.4177072]
[1659305571987,9.1086,1698.9,1698.6,0.3]
[1659305572186,9.1086,1698.9,1698.6,0.25]
[1659305572404,2.89804672,1698.8,1698.6,0.25]
[1659305575496,9.09504672,1698.8,1698.6,0.25]
[1659305575695,2.89804672,1698.7,1698.6,0.25]
[1659305578160,9.09504672,1698.7,1698.6,0.25]
[1659305578558,2.89804672,1698.7,1698.6,0.25]
[1659305579513,9.09504672,1698.7,1698.6,0.25]
[1659305579713,2.89804672,1698.7,1698.6,0.25]
[1659305581926,2.89804672,1698.8,1698.6,0.25]
[1659305582250,7.885,1699.0,1698.6,3.25]
[1659305582453,2.7838,1699.1,1698.6,0.25]
[1659305582767,2.7838,1699.1,1698.7,0.63827]
[1659305582922,2.89804672,1699.0,1698.7,0.93827]
[1659305583560,2.89804672,1699.0,1698.7,1.53251]
[1659305583756,2.89804672,1699.0,1698.7,3.00373]
[1659305583959,2.89804672,1699.0,1698.7,3.1214409]
[1659305584126,2.89804672,1699.0,1698.8,3.32399208]
[1659305586649,9.09504672,1699.0,1698.8,3.32399208]
[1659305586847,9.09504672,1699.0,1698.8,0.02399208]
[1659305586848,9.29504672,1698.9,1698.8,0.02399208]
[1659305587044,2.89804672,1698.9,1698.8,0.02399208]
[1659305590387,9.09504672,1698.9,1698.8,0.02399208]
[1659305590948,9.29504672,1698.9,1698.8,0.02399208]
[1659305591383,12.82504672,1698.9,1698.7,0.0007109]
[1659305591575,12.82504672,1698.9,1698.3,0.05]
[1659305591576,2.2,1698.4,1698.3,0.05]
[1659305591780,2.89804672,1698.4,1698.0,0.63839]
[1659305592665,2.89804672,1698.5,1698.0,1.3449387]
[1659305592864,0.05,1698.7,1698.2,0.2]
[1659305593068,0.05,1698.7,1698.3,1.0869]
[1659305593069,2.89804672,1698.7,1698.3,1.0869]
[1659305593275,0.05,1698.9,1698.3,3.15257]
[1659305593599,2.89804672,1698.8,1698.5,0.2943]
[1659305593759,2.89804672,1698.8,1698.5,1.0006471]
[1659305593959,2.89804672,1698.9,1698.6,0.3]
[1659305600581,6.197,1698.9,1698.6,0.3]
[1659305600785,9.09504672,1698.8,1698.6,0.3]
[1659305600988,2.89804672,1698.7,1698.6,0.3]
[1659305602175,12.62504672,1698.7,1698.6,0.3]
[1659305602414,12.82504672,1698.7,1698.5,0.4177245]
[1659305602616,9.09504672,1698.6,1698.5,0.1177245]
[1659305606195,2.89804672,1698.6,1698.5,0.1177245]
[1659305606395,3.34094672,1698.6,1698.5,0.1177245]
[1659305606593,9.53794672,1698.6,1698.5,0.1177245]
[1659305606815,9.73794672,1698.6,1698.5,0.1177245]
[1659305607125,14.86257,1698.9,1698.5,0.1177245]
[1659305607126,6.8905,1698.9,1698.5,0.1177245]
[1659305607326,2.89804672,1698.8,1698.6,0.4414549]
[1659305607676,2.89804672,1698.8,1698.6,1.0414549]
[1659305607677,0.2,1698.7,1698.6,1.0414549]
[1659305607878,3.09804672,1698.7,1698.6,1.0414549]
[1659305608726,9.29504672,1698.7,1698.6,1.0414549]
[1659305608927,3.09804672,1698.7,1698.6,1.0414549]
[1659305609614,9.29504672,1698.7,1698.6,1.0414549]
[1659305609816,3.09804672,1698.7,1698.6,1.0414549]
[1659305610018,3.09804672,1698.7,1698.6,0.4414549]
[1659305610221,3.09804672,1698.7,1698.5,0.2849245]
[1659305610222,0.2,1698.6,1698.5,0.2849245]
[1659305610540,6.39804672,1698.6,1698.5,0.2849245]
[1659305610692,2.89804672,1698.6,1698.5,0.2849245]
[1659305611087,2.89804672,1698.6,1698.5,0.7264898]
[1659305611511,2.89804672,1698.6,1698.5,1.0264898]
[1659305612295,2.89804672,1698.6,1698.5,1.3264898]
[1659305614923,9.09504672,1698.6,1698.5,0.8849245]
[1659305615140,12.62504672,1698.6,1698.5,0.8849245]
[1659305615335,16.12504672,1698.6,1698.5,0.1672]
[1659305615578,19.11254672,1698.6,1698.5,0.1672]
[1659305615778,19.11254672,1698.6,1698.2,0.002888]
[1659305615779,19.55544672,1698.6,1698.2,0.002888]
[1659305616078,19.55544672,1698.6,1697.9,0.05]
[1659305616079,6.197,1698.3,1697.9,0.05]
[1659305616282,2.89804672,1698.2,1698.0,0.0883254]
[1659305616855,6.59804672,1698.2,1698.0,0.0883254]
[1659305617191,6.59804672,1698.2,1697.6,0.05]
[1659305617192,10.12804672,1698.1,1697.6,0.05]
[1659305617387,2.89804672,1697.9,1697.7,0.0883482]
[1659305619497,4.05,1698.3,1697.7,0.0883482]
[1659305619704,2.89804672,1698.2,1697.8,0.344]
[1659305619900,2.89804672,1698.2,1697.8,1.0798997]
[1659305620103,2.89804672,1698.1,1697.9,0.5313101]
[1659305620302,2.89804672,1698.1,1697.9,0.6883101]
[1659305622283,0.61813504,1698.0,1697.9,0.0883101]
[1659305622481,3.51618176,1698.0,1697.9,0.0883101]
[1659305623527,3.51618176,1698.0,1697.9,0.3883101]
[1659305623732,2.93518176,1698.0,1697.9,0.0883101]
[1659305624373,2.93310261,1698.0,1697.9,0.0883101]
[1659305624966,2.93310261,1698.0,1696.0,7.73]
[1659305624967,2.84606697,1696.5,1696.0,7.73]
[1659305625171,2.98171899,1696.7,1696.3,7.5]
[1659305625383,2.98171899,1696.7,1696.2,3.2152]
[1659305625384,5.82976571,1696.7,1696.2,3.2152]
[1659305625578,5.82976571,1696.7,1696.3,0.2946]
[1659305625876,2.89804672,1696.6,1696.3,7.5]
[1659305626023,2.89804672,1696.6,1696.4,0.4434]
[1659305626225,2.89804672,1696.6,1696.3,7.5]
[1659305626451,3.09804672,1696.6,1696.3,7.5]
[1659305626726,2.89804672,1696.5,1696.3,7.5]
[1659305627165,2.89804672,1696.5,1696.4,0.02290377]
[1659305627474,2.89804672,1696.6,1696.4,0.11130697]
[1659305627684,9.3658,1696.9,1696.4,0.11130697]
[1659305627685,2.89804672,1696.8,1696.4,7.61130697]
[1659305627967,2.89804672,1696.9,1696.4,0.11130697]
[1659305628170,2.89804672,1697.0,1696.4,7.61130697]
[1659305628458,2.89804672,1697.0,1696.4,0.11130697]
[1659305628677,2.89804672,1697.1,1696.4,3.41130697]
[1659305628831,2.89804672,1697.1,1696.5,3.59457]
[1659305629373,2.94804672,1697.2,1696.5,0.59457]
[1659305629540,2.89804672,1697.2,1696.6,0.5317729]
[1659305629741,2.89804672,1697.2,1696.6,0.8317729]
[1659305630153,1.05,1697.4,1696.7,0.29452]
[1659305630354,0.05,1697.5,1696.8,0.4433]
[1659305630540,0.05,1697.5,1696.8,0.7433]
[1659305630541,2.89804672,1697.5,1696.8,0.7433]
[1659305630741,2.89804672,1697.5,1696.8,0.6]
[1659305630927,2.94804672,1697.6,1696.8,7.8]
[1659305631137,0.05,1697.6,1696.9,14.89448]
[1659305631376,0.05,1697.7,1697.0,2.9228]
[1659305631573,0.03505589,1698.0,1697.1,3.3]
[1659305631574,0.05,1697.8,1697.1,3.3]
[1659305631754,0.05,1697.9,1697.2,1.03763]
[1659305631955,0.03505589,1698.0,1697.2,1.03763]
[1659305631956,0.08505589,1698.0,1697.2,1.03763]
[1659305632258,2.98310261,1698.0,1697.2,1.03763]
[1659305632469,2.98310261,1698.0,1697.1,0.65261116]
[1659305632470,9.09504672,1697.7,1697.1,0.65261116]
[1659305632631,9.09504672,1697.7,1697.1,0.87173884]
[1659305632632,2.89804672,1697.6,1697.1,0.87173884]
[1659305632830,2.89804672,1697.6,1697.1,0.30261116]
[1659305633280,2.89804672,1697.6,1697.1,0.3]
[1659305633447,3.24276107,1697.6,1696.9,0.64449]
[1659305633771,2.89804672,1697.5,1697.1,0.0589055]
[1659305635473,2.89804672,1697.5,1697.1,0.08191665]
[1659305636574,2.89804672,1697.5,1697.1,0.0589055]
[1659305637690,0.2,1697.4,1697.1,0.0589055]
[1659305637848,2.89804672,1697.3,1697.1,0.0589055]
[1659305638268,0.39471435,1697.6,1697.1,0.0589055]
[1659305638466,2.89804672,1697.6,1697.1,0.0589055]
[1659305638703,0.05,1697.8,1697.1,2.95695222]
[1659305638905,0.05,1697.9,1697.1,2.95695222]
[1659305639111,2.94804672,1697.9,1697.1,2.95695222]
[1659305639282,0.05,1697.9,1697.3,0.29437]
[1659305639471,0.03505589,1698.0,1697.3,3.29437]
[1659305639472,0.08505589,1698.0,1697.3,3.29437]
[1659305639673,2.93310261,1698.0,1697.4,0.3532482]
[1659305639894,2.93310261,1698.0,1697.5,0.3]
[1659305640698,2.93310261,1698.0,1697.6,0.29437]
[1659305640870,2.93310261,1698.0,1697.7,0.3588764]
[1659305642671,0.03505589,1698.0,1697.7,2.3588764]
[1659305642871,0.03505589,1698.0,1697.7,7.1306264]
[1659305643113,0.03505589,1698.0,1697.7,7.4249648]
[1659305643281,0.03505589,1698.0,1697.8,0.29431]
[1659305643671,0.03505589,1698.0,1697.8,3.29431]
[1659305643873,0.03505589,1698.0,1697.8,3.59431]
[1659305644072,0.03505589,1698.0,1697.8,3.88863]
[1659305644500,0.03505589,1698.0,1697.9,0.60646791]
[1659305644672,0.03505589,1698.0,1697.9,1.20646791]
[1659305645632,0.03505589,1698.0,1697.9,0.62546791]
[1659305645937,0.61605589,1698.0,1697.9,0.02546791]
[1659305646798,0.03505589,1698.0,1697.9,0.02546791]
[1659305647429,0.03505589,1698.0,1697.7,0.03434431]
[1659305647639,0.03505589,1698.0,1697.8,0.29438]
[1659305648349,2.85141108,1697.1,1696.0,0.18089158]
[1659305648496,2.85141108,1697.1,1696.1,11.4435]
[1659305648497,2.94804672,1697.0,1696.1,11.4435]
[1659305648809,2.89804672,1696.9,1696.3,0.29456]
[1659305649013,3.24276107,1696.9,1696.3,0.29456]
[1659305649232,2.89804672,1696.8,1696.3,0.29456]
[1659305649758,3.09804672,1696.9,1696.3,0.29456]
[1659305650039,0.2,1696.9,1696.3,0.29456]
[1659305650208,3.09804672,1696.9,1696.4,0.2945859]
[1659305650392,3.09804672,1696.9,1696.5,0.29461]
[1659305650822,3.09804672,1696.9,1696.5,0.3535328]
[1659305651147,0.2,1697.1,1696.5,0.3535328]
[1659305651312,3.09804672,1697.1,1696.5,0.3535328]
[1659305651515,3.09804672,1697.1,1696.6,0.02257851]
[1659305651831,2.89804672,1697.1,1696.7,0.29457]
[1659305652001,2.89804672,1697.2,1696.8,0.0589156]
[1659305652397,0.05,1697.4,1696.8,4.0022156]
[1659305652598,0.03505589,1698.0,1697.0,2.0]